[Event "14th Poti Open-A 2019"]
[Site "Poti"]
[Date "2019.07.16"]
[Round "5.9"]
[White "Aliyev, Ravan"]
[Black "Melkonyan, Vardan"]
[Result "0-1"]
[ECO "D43"]
[WhiteElo "2385"]
[BlackElo "2232"]
[Annotator "RC"]
[PlyCount "176"]
[EventDate "2019.07.13"]
[EventType "swiss"]
[EventCountry "GEO"]
[SourceTitle "playchess.com"]
[Source "ChessBase"]
[SourceQuality "1"]
[TimeControl "40/5400+30:1800+30"]

1. d4 {[%emt 0:00:00]} d5 {[%emt 0:00:01]} 2. c4 {[%emt 0:00:04]} c6 {[%emt 0:00:04]} 3. Nc3 {[%emt 0:00:09]} Nf6 {[%emt 0:00:08]} 4. Nf3 {[%emt 0:00:08]} e6 {[%emt 0:00:05]} 5. g3 {[%emt 0:00:16]} Nbd7 {[%emt 0:02:34]} 6. Bg2 {[%emt 0:00:14]} dxc4 {[%emt 0:01:06]} 7. O-O {[%emt 0:01:20]} b5 {[%emt 0:10:17]} 8. e4 {[%emt 0:01:22]} b4 {[%emt 0:06:32]} 9. e5 {[%emt 0:01:23]} Nd5 {[%emt 0:02:23]} 10. Ne4 {[%emt 0:00:46]} Be7 {[%emt 0:04:43]} 11. Bg5 {[%emt 0:12:15]} Bxg5 {[%emt 0:01:13]} 12. Nfxg5 {[%emt 0:00:02]} O-O {[%emt 0:00:20]} 13. Nxh7 Kxh7 {[%emt 0:00:36]} 14. Qh5+ {[%emt 0:10:17]} Kg8 {[%emt 0:00:04]} 15. Ng5 {[%emt 0:00:06]} N7f6 {[%emt 0:16:50]} 16. Qh4 {[%emt 0:07:09]} Re8 {[%emt 0:00:05]} 17. Rfe1 {[%emt 0:01:51]} c3 {[%emt 0:34:51]} 18. bxc3 {[%emt 0:03:29]} bxc3 {[%emt 0:00:02]} 19. Rac1 {[%emt 0:07:58]} Ba6 {[%emt 0:00:13]} 20. exf6 {[%emt 0:03:16]} Qxf6 {[%emt 0:00:05]} 21. Qh7+ {[%emt 0:01:11]} Kf8 {[%emt 0:00:02]} 22. Qh5 {[%emt 0:07:31]} Bd3 {[%emt 0:07:32]} 23. Bxd5 {[%emt 0:10:33]} cxd5 {[%emt 0:02:31]} 24. Rxc3 {[%emt 0:00:01]} Bg6 {[%emt 0:03:13]} 25. Qh4 {[%emt 0:00:02]} Kg8 {[%emt 0:00:39]} 26. Rf3 {[%emt 0:03:48]} Qe7 {[%emt 0:01:39]} 27. g4 {[%emt 0:02:59]} Qb4 {[%emt 0:00:40]} 28. Rd1 {[%emt 0:00:07]} f6 {[%emt 0:01:41]} 29. Rh3 {[%emt 0:02:32]} fxg5 {[%emt 0:01:41]} 30. Qh8+ {[%emt 0:00:08]} Kf7 {[%emt 0:00:04]} 31. Rf3+ {[%emt 0:00:04]} Bf5 {[%emt 0:00:18]} 32. Qh5+ {[%emt 0:00:01]} g6 {[%emt 0:02:04]} 33. Qxg5 {[%emt 0:03:20]} Qe7 {[%emt 0:00:36]} 34. Qf4 {[%emt 0:01:12]} Kg7 {[%emt 0:00:33]} 35. gxf5 {[%emt 0:00:44]} exf5 {[%emt 0:00:01]} 36. Rh3 {[%emt 0:06:33]} Qe4 {[%emt 0:01:22]} 37. Qh6+ {[%emt 0:00:53]} Kf6 {[%emt 0:00:01]} 38. Rg3 {[%emt 0:00:33]} Rg8 {[%emt 0:01:22]} 39. Rc1 {[%emt 0:00:50]} Rae8 {[%emt 0:00:22]} 40. Rc6+ {[%emt 0:00:00]} Re6 {[%emt 0:00:00]} 41. Qg5+ {[%emt 0:07:37]} Kf7 {[%emt 0:00:17]} 42. Re3 {[%emt 0:00:21]} Rxc6 {[%emt 0:04:13]} 43. Rxe4 {[%emt 0:00:17]} dxe4 {[%emt 0:00:06]} 44. h4 {[%emt 0:09:31]} Rd6 {[%emt 0:04:11]} 45. Qf4 {[%emt 0:01:31]} Rgd8 {[%emt 0:02:14]} 46. h5 {[%emt 0:01:42]} Rd5 {[%emt 0:01:24]} 47. Qg5 {[%emt 0:03:46]} R8d6 {[%emt 0:02:54]} 48. Kf1 {[%emt 0:00:02]} a6 {[%emt 0:00:38]} 49. Qh6 {[%emt 0:04:33]} gxh5 {[%emt 0:00:19]} 50. Qxh5+ {[%emt 0:00:01]} Ke7 {[%emt 0:00:14]} 51. Qh7+ {[%emt 0:00:22]} Ke6 {[%emt 0:00:17]} 52. Qg6+ {[%emt 0:01:41]} Kd7 {[%emt 0:00:08]} 53. Qf7+ {[%emt 0:00:01]} Kc6 {[%emt 0:00:21]} 54. Ke2 {[%emt 0:02:18]} Kb5 {[%emt 0:13:37]} 55. Ke3 {[%emt 0:11:05]} Ka4 {[%emt 0:01:25]} 56. Qb7 {[%emt 0:00:05]} Rb5 {[%emt 0:01:52]} 57. Qc7 {[%emt 0:00:19]} Rh6 {[%emt 0:00:39]} 58. Qc4+ {[%emt 0:07:26]} Ka3 {[%emt 0:01:16]} 59. Qc1+ {[%emt 0:01:03]} Kxa2 {[%emt 0:00:30]} 60. Qc2+ {[%emt 0:00:02]} Ka3 {[%emt 0:00:22]} 61. Qc1+ {[%emt 0:00:06]} Ka4 {[%emt 0:01:59]} 62. Qc4+ {[%emt 0:00:20]} Ka5 {[%emt 0:00:24]} 63. Qc7+ {[%emt 0:01:02]} Kb4 {[%emt 0:01:04]} 64. Qe7+ {[%emt 0:01:00]} Ka4 {[%emt 0:00:04]} 65. Kf4 {[%emt 0:00:38]} Rh3 {[%emt 0:02:03]} 66. Qe6 {[%emt 0:00:01]} Rf3+ {[%emt 0:00:50]} 67. Kg5 {[%emt 0:00:01]} Rxf2 {[%emt 0:00:24]} 68. Qxa6+ {[%emt 0:00:13]} Kb4 {[%emt 0:00:06]} 69. Qd6+ {[%emt 0:00:15]} Ka4 {[%emt 0:00:37]} 70. Qa6+ {[%emt 0:00:13]} Kb4 {[%emt 0:00:02]} 71. Qd6+ {[%emt 0:00:02]} Kb3 {[%emt 0:00:26]} 72. Qc6 {[%emt 0:00:19]} Rb4 {[%emt 0:00:36]} 73. Qe6+ {[%emt 0:00:08]} Kc3 {[%emt 0:00:41]} 74. d5 {[%emt 0:00:00]} Rd4 {[%emt 0:00:42]} 75. Qc6+ {[%emt 0:01:25]} Kd3 {[%emt 0:00:40]} 76. Qb5+ {[%emt 0:01:44]} Ke3 {[%emt 0:00:21]} 77. Qc5 {[%emt 0:00:36]} Rfd2 {[%emt 0:01:07]} 78. d6 {[%emt 0:01:25]} f4 {[%emt 0:00:25]} 79. Qc3+ {[%emt 0:00:39]} R4d3 {[%emt 0:00:15]} 80. Qc5+ {[%emt 0:00:19]} Kf3 {[%emt 0:00:15]} 81. Qc1 {[%emt 0:00:13]} Rd5+ {[%emt 0:00:12]} 82. Kf6 {[%emt 0:00:02]} Rxd6+ {[%emt 0:00:09]} 83. Ke7 {[%emt 0:00:07]} Kg2 {[%emt 0:01:00]} 84. Qc4 {[%emt 0:00:21]} f3 {[%emt 0:00:08]} 85. Qg8+ {[%emt 0:00:11]} Kf2 {[%emt 0:00:14]} 86. Qg5 {[%emt 0:00:01]} e3 {[%emt 0:00:23]} 87. Qh4+ {[%emt 0:00:01]} Ke2 {[%emt 0:00:05]} 88. Qh5 {[%emt 0:00:04]} R6d5 {[%emt 0:01:08]} 0-1

[Event "14th Poti Open-A 2019"]
[Site "Poti"]
[Date "2019.07.16"]
[Round "5.17"]
[White "Manukyan, Aleks"]
[Black "Ismayil, Malak"]
[Result "1-0"]
[ECO "A05"]
[WhiteElo "2097"]
[BlackElo "1886"]
[Annotator "NA RC"]
[PlyCount "67"]
[EventDate "2019.07.13"]
[EventType "swiss"]
[EventCountry "GEO"]
[SourceTitle "playchess.com"]
[Source "ChessBase"]
[SourceQuality "1"]
[TimeControl "40/5400+30:1800+30"]

1. Nf3 {[%emt 0:00:31]} Nf6 {[%emt 0:00:00]} 2. c4 {[%emt 0:01:38]} Nc6 {[%emt 0:00:48]} 3. d4 {[%emt 0:00:30]} e6 {[%emt 0:00:15]} 4. Nc3 {[%emt 0:04:18]} Bb4 {[%emt 0:07:34]} 5. Qc2 {[%emt 0:00:37]} d5 {[%emt 0:09:15]} 6. a3 {[%emt 0:02:07]} Bxc3+ {[%emt 0:01:23]} 7. bxc3 {[%emt 0:01:36]} Ne4 {[%emt 0:02:26]} 8. e3 {[%emt 0:01:39]} O-O {[%emt 0:03:06]} 9. Bd3 {[%emt 0:00:10]} Nf6 {[%emt 0:02:18]} 10. O-O {[%emt 0:00:38]} h6 {[%emt 0:00:56]} 11. h3 {[%emt 0:01:44]} b6 {[%emt 0:01:33]} 12. cxd5 {[%emt 0:03:47]} exd5 {[%emt 0:01:10]} 13. c4 {[%emt 0:00:38]} dxc4 14. Bxc4 {[%emt 0:00:59]} Na5 {[%emt 0:09:42]} 15. Bd3 {[%emt 0:05:38]} Be6 {[%emt 0:00:21]} 16. Bb2 {[%emt 0:05:02]} c5 {[%emt 0:00:58]} 17. dxc5 {[%emt 0:04:03]} Rc8 {[%emt 0:00:46]} 18. Qe2 {[%emt 0:04:01]} bxc5 {[%emt 0:19:03]} 19. Rfd1 {[%emt 0:10:03]} Qe7 {[%emt 0:00:33]} 20. Rac1 {[%emt 0:02:51]} c4 {[%emt 0:02:09]} 21. Bb1 {[%emt 0:01:44]} Nb3 {[%emt 0:01:17]} 22. Rc2 {[%emt 0:07:13]} Ne4 {[%emt 0:01:27]} 23. Be5 {[%emt 0:08:30]} Rfd8 {[%emt 0:01:49]} 24. Rxd8+ {[%emt 0:02:47]} Rxd8 {[%emt 0:03:51]} 25. Kh2 {[%emt 0:02:24]} Kf8 {[%emt 0:11:45]} 26. Bf4 {[%emt 0:03:59]} f6 {[%emt 0:03:49]} 27. Nd4 {[%emt 0:02:01]} Nxd4 {[%emt 0:05:39]} 28. exd4 {[%emt 0:00:01]} Rxd4 {[%emt 0:00:47]} 29. Qe3 {[%emt 0:02:51]} Qd7 {[%emt 0:00:51]} 30. Rb2 {[%emt 0:00:22]} Ng5 {[%emt 0:04:58]} 31. Rb8+ {[%emt 0:01:06]} Ke7 {[%emt 0:00:41]} 32. Qc3 {[%emt 0:04:32]} Kf7 {[%emt 0:01:53]} 33. Qb4 {[%emt 0:00:57]} Qe7 {[%emt 0:00:28]} 34. Bg6+ {[%emt 0:00:07]} 1-0

[Event "14th Poti Open-A 2019"]
[Site "Poti"]
[Date "2019.07.16"]
[Round "5.18"]
[White "Manukyan, Sevak N."]
[Black "Qalichava, Akaki"]
[Result "0-1"]
[ECO "A05"]
[WhiteElo "1830"]
[BlackElo "1808"]
[Annotator "NA RC"]
[PlyCount "88"]
[EventDate "2019.07.13"]
[EventType "swiss"]
[EventCountry "GEO"]
[SourceTitle "playchess.com"]
[Source "ChessBase"]
[SourceQuality "1"]
[TimeControl "40/5400+30:1800+30"]

1. Nf3 {[%emt 0:00:00]} Nf6 {[%emt 0:00:00]} 2. g3 {[%emt 0:00:04]} d5 {[%emt 0:00:00]} 3. Bg2 {[%emt 0:00:06]} c5 {[%emt 0:00:00]} 4. O-O {[%emt 0:00:10]} Nc6 {[%emt 0:00:00]} 5. c4 {[%emt 0:00:09]} e5 {[%emt 0:00:00]} 6. cxd5 {[%emt 0:00:30]} Nxd5 {[%emt 0:00:04]} 7. Nc3 {[%emt 0:00:09]} Be6 {[%emt 0:00:13]} 8. Qa4 {[%emt 0:01:40]} f6 {[%emt 0:01:50]} 9. d3 {[%emt 0:11:19]} Be7 {[%emt 0:02:05]} 10. Nd2 {[%emt 0:00:21]} Qd7 {[%emt 0:07:09]} 11. Nc4 {[%emt 0:03:21]} O-O {[%emt 0:01:36]} 12. a3 {[%emt 0:04:35]} Nb6 {[%emt 0:03:47]} 13. Qd1 {[%emt 0:10:28]} Rfd8 {[%emt 0:10:25]} 14. b3 {[%emt 0:01:23]} Rac8 {[%emt 0:01:27]} 15. Be3 {[%emt 0:04:48]} Nd4 {[%emt 0:02:24]} 16. Rb1 {[%emt 0:04:50]} Nd5 {[%emt 0:01:28]} 17. Nxd5 {[%emt 0:03:28]} Bxd5 {[%emt 0:00:26]} 18. Bxd5+ {[%emt 0:00:25]} Qxd5 {[%emt 0:00:05]} 19. Qd2 {[%emt 0:00:51]} b5 {[%emt 0:04:47]} 20. Na5 {[%emt 0:00:13]} Rd7 {[%emt 0:01:32]} 21. Rfc1 {[%emt 0:03:34]} Bd8 {[%emt 0:00:45]} 22. Bxd4 {[%emt 0:00:10]} exd4 {[%emt 0:00:11]} 23. a4 {[%emt 0:06:54]} a6 {[%emt 0:03:31]} 24. axb5 {[%emt 0:03:50]} axb5 {[%emt 0:00:05]} 25. b4 {[%emt 0:18:34]} c4 {[%emt 0:01:29]} 26. dxc4 {[%emt 0:01:35]} bxc4 {[%emt 0:00:19]} 27. Qa2 {[%emt 0:00:53]} Ra7 {[%emt 0:07:44]} 28. Qd2 {[%emt 0:11:06]} Bxa5 {[%emt 0:02:21]} 29. bxa5 {[%emt 0:00:04]} Rxa5 {[%emt 0:00:17]} 30. Qb4 {[%emt 0:04:38]} Rac5 {[%emt 0:04:00]} 31. Rd1 {[%emt 0:00:29]} Qe4 {[%emt 0:00:26]} 32. Rbc1 {[%emt 0:00:57]} f5 {[%emt 0:04:42]} 33. Qa4 {[%emt 0:00:41]} f4 {[%emt 0:01:37]} 34. Qd7 {[%emt 0:00:09]} fxg3 {[%emt 0:00:10]} 35. hxg3 {[%emt 0:00:27]} Qxe2 {[%emt 0:01:44]} 36. Rxd4 {[%emt 0:01:20]} Rf8 {[%emt 0:00:47]} 37. Rd2 {[%emt 0:01:40]} Qe4 {[%emt 0:02:57]} 38. Qd4 {[%emt 0:01:06]} Qxd4 {[%emt 0:00:32]} 39. Rxd4 {[%emt 0:00:01]} c3 {[%emt 0:00:06]} 40. Rd3 {[%emt 0:00:33]} c2 {[%emt 0:00:05]} 41. Rd2 {[%emt 0:30:04]} Rfc8 {[%emt 0:30:07]} 42. Kf1 {[%emt 0:00:05]} Kf7 {[%emt 0:00:25]} 43. Ke2 {[%emt 0:01:15]} Ke6 {[%emt 0:00:12]} 44. Kd3 {[%emt 0:00:56]} Rd8+ {[%emt 0:00:17] Kd4 Ke5+} 0-1

[Event "14th Poti Open-A 2019"]
[Site "Poti"]
[Date "2019.07.16"]
[Round "5.19"]
[White "Mindiashvili, Tengiz"]
[Black "Kvaratskhelia, Dimitri"]
[Result "1/2-1/2"]
[ECO "A01"]
[WhiteElo "1862"]
[BlackElo "2014"]
[Annotator "NA RC"]
[PlyCount "74"]
[EventDate "2019.07.13"]
[EventType "swiss"]
[EventCountry "GEO"]
[SourceTitle "playchess.com"]
[Source "ChessBase"]
[SourceQuality "1"]
[TimeControl "40/5400+30:1800+30"]

1. b3 e5 2. Bb2 Nc6 3. e3 Nf6 4. Bb5 Bd6 5. Ne2 a6 6. Bxc6 dxc6 7. O-O e4 8. f4 exf3 9. Rxf3 Bg4 10. Rf1 Qe7 11. Qe1 O-O-O 12. Ng3 h5 13. Nc3 Rh6 14. d3 Rg6 15. Nce4 Bb4 16. Bc3 Bxc3 17. Nxc3 Bh3 18. gxh3 h4 19. Rf3 Rh8 20. Kh1 hxg3 21. Rxg3 Rgh6 22. Qf1 Qd7 23. Re1 Rxh3 24. Rxh3 Rxh3 25. Re2 Qe6 26. Nd1 Kb8 27. Qg2 g6 28. Qf1 Qg4 29. Nf2 Qf3+ 30. Kg1 Rh5 31. Nh1 Qxf1+ 32. Kxf1 Ng4 33. Kg1 Rh3 34. e4 Re3 35. Ng3 Rxe2 36. Nxe2 c5 37. c3 c6 1/2-1/2

[Event "14th Poti Open-A 2019"]
[Site "Poti"]
[Date "2019.07.16"]
[Round "5.20"]
[White "Khachatrian, Arbi"]
[Black "Pluzyan, Aram"]
[Result "0-1"]
[ECO "B01"]
[WhiteElo "1735"]
[BlackElo "2087"]
[Annotator "NA RC"]
[PlyCount "132"]
[EventDate "2019.07.13"]
[EventType "swiss"]
[EventCountry "GEO"]
[SourceTitle "playchess.com"]
[Source "ChessBase"]
[SourceQuality "1"]
[TimeControl "40/5400+30:1800+30"]

1. e4 {[%emt 0:00:00]} d5 {[%emt 0:00:00]} 2. exd5 {[%emt 0:00:00]} Nf6 {[%emt 0:00:00]} 3. d4 {[%emt 0:00:16]} Nxd5 {[%emt 0:00:00]} 4. c4 {[%emt 0:00:28]} Nb6 {[%emt 0:00:01]} 5. Nc3 {[%emt 0:00:26]} Nc6 {[%emt 0:00:06]} 6. d5 {[%emt 0:02:49]} Ne5 {[%emt 0:01:09]} 7. Qd4 {[%emt 0:00:25]} Ng6 {[%emt 0:01:39]} 8. c5 {[%emt 0:09:05]} e5 {[%emt 0:00:38]} 9. Qd1 {[%emt 0:08:55]} Bxc5 {[%emt 0:00:12]} 10. g3 {[%emt 0:00:13]} Ne7 {[%emt 0:04:08]} 11. Bg2 {[%emt 0:00:53]} Bb4 {[%emt 0:01:40]} 12. Nge2 {[%emt 0:00:59]} Nexd5 {[%emt 0:01:32]} 13. Qc2 {[%emt 0:01:43]} O-O {[%emt 0:07:31]} 14. O-O {[%emt 0:00:05]} c6 {[%emt 0:00:47]} 15. a3 {[%emt 0:02:54]} Be7 {[%emt 0:00:48]} 16. b3 {[%emt 0:00:29]} Be6 {[%emt 0:02:31]} 17. Bb2 {[%emt 0:00:21]} f6 {[%emt 0:01:45]} 18. Rfd1 {[%emt 0:02:12]} Qe8 {[%emt 0:00:29]} 19. Ne4 {[%emt 0:00:54]} Qf7 {[%emt 0:01:02]} 20. Nc5 {[%emt 0:00:38]} Bxc5 21. Qxc5 {[%emt 0:00:08]} Nc7 {[%emt 0:02:11]} 22. Nc1 {[%emt 0:02:25]} Rad8 {[%emt 0:00:49]} 23. Qc2 {[%emt 0:00:43]} Rxd1+ {[%emt 0:01:00]} 24. Qxd1 {[%emt 0:00:06]} Qd7 {[%emt 0:00:09]} 25. Qxd7 {[%emt 0:03:03]} Nxd7 {[%emt 0:01:06]} 26. Kf1 {[%emt 0:02:13]} Nc5 {[%emt 0:00:32]} 27. Bc3 {[%emt 0:00:46]} Nxb3 {[%emt 0:02:34]} 28. Nxb3 {[%emt 0:00:09]} Bxb3 {[%emt 0:00:07]} 29. Rb1 {[%emt 0:00:26]} Bc4+ {[%emt 0:00:02]} 30. Ke1 {[%emt 0:00:26]} Nb5 {[%emt 0:00:01]} 31. Bb4 {[%emt 0:00:39]} Rd8 {[%emt 0:00:33]} 32. Be4 {[%emt 0:02:37]} g6 {[%emt 0:02:30]} 33. g4 {[%emt 0:00:29]} Rd7 {[%emt 0:04:33]} 34. f3 {[%emt 0:02:49]} a6 {[%emt 0:02:48]} 35. a4 {[%emt 0:03:26]} Nd4 {[%emt 0:00:24]} 36. Bc5 {[%emt 0:01:02]} Ne6 {[%emt 0:07:01]} 37. Bb6 {[%emt 0:02:42]} Kf7 {[%emt 0:03:52]} 38. Rb2 {[%emt 0:00:08]} Ke7 {[%emt 0:01:01]} 39. h4 {[%emt 0:02:03]} Bd5 {[%emt 0:00:48]} 40. Be3 {[%emt 0:08:03]} Bxe4 {[%emt 0:05:50]} 41. fxe4 {[%emt 0:30:09]} Nd4 {[%emt 0:30:10]} 42. Kf2 {[%emt 0:01:09]} Kd6 {[%emt 0:01:13]} 43. Bd2 {[%emt 0:04:35]} Kc5 {[%emt 0:01:35]} 44. Ke3 {[%emt 0:01:19]} b5 {[%emt 0:03:08]} 45. a5 {[%emt 0:02:29]} Kd6 {[%emt 0:01:12]} 46. Be1 {[%emt 0:04:34]} c5 {[%emt 0:00:25]} 47. Rh2 {[%emt 0:01:33]} b4 {[%emt 0:01:19]} 48. g5 {[%emt 0:00:09]} f5 {[%emt 0:00:52]} 49. exf5 {[%emt 0:01:12]} gxf5 {[%emt 0:00:16]} 50. h5 {[%emt 0:00:12]} Kd5 {[%emt 0:00:29]} 51. g6 {[%emt 0:00:31]} hxg6 {[%emt 0:00:43]} 52. hxg6 {[%emt 0:00:08]} Rg7 {[%emt 0:00:14]} 53. Rg2 {[%emt 0:01:01]} f4+ {[%emt 0:00:11]} 54. Kf2 {[%emt 0:02:02]} Ke6 {[%emt 0:00:41]} 55. Kf1 {[%emt 0:00:21]} Kf5 {[%emt 0:00:12]} 56. Rh2 {[%emt 0:00:44]} Rxg6 {[%emt 0:00:17]} 57. Rh7 {[%emt 0:00:32]} Ke4 {[%emt 0:00:27]} 58. Rc7 {[%emt 0:00:41]} Rc6 {[%emt 0:00:16]} 59. Rb7 {[%emt 0:00:47]} Kd3 {[%emt 0:00:15]} 60. Bf2 {[%emt 0:00:32]} e4 {[%emt 0:00:51]} 61. Bxd4 {[%emt 0:00:29]} Kxd4 {[%emt 0:00:02]} 62. Rb6 {[%emt 0:00:35]} Kd5 {[%emt 0:00:08]} 63. Rb8 {[%emt 0:00:25]} c4 {[%emt 0:00:17]} 64. Ke2 {[%emt 0:03:17]} c3 {[%emt 0:00:18]} 65. Kd1 {[%emt 0:00:26]} c2+ {[%emt 0:00:14]} 66. Kc1 {[%emt 0:00:06]} f3 {[%emt 0:00:14]} 0-1

[Event "14th Poti Open-A 2019"]
[Site "Poti"]
[Date "2019.07.16"]
[Round "5.21"]
[White "Nurijanyan, Alex"]
[Black "Bechvaia, Gabriel"]
[Result "0-1"]
[ECO "B23"]
[WhiteElo "1610"]
[BlackElo "1793"]
[Annotator "NA RC"]
[PlyCount "58"]
[EventDate "2019.07.13"]
[EventType "swiss"]
[EventCountry "GEO"]
[SourceTitle "playchess.com"]
[Source "ChessBase"]
[SourceQuality "1"]
[TimeControl "40/5400+30:1800+30"]

1. e4 {[%emt 0:00:00]} c5 {[%emt 0:00:00]} 2. Nc3 {[%emt 0:00:00]} g6 {[%emt 0:00:35]} 3. f4 {[%emt 0:01:43]} Bg7 {[%emt 0:01:11]} 4. Nf3 {[%emt 0:04:16]} Nc6 {[%emt 0:00:13]} 5. Bc4 {[%emt 0:00:10]} e6 {[%emt 0:01:06]} 6. O-O {[%emt 0:00:10]} Nge7 {[%emt 0:00:25]} 7. d3 {[%emt 0:06:19]} d5 {[%emt 0:05:08]} 8. Bb3 {[%emt 0:03:13]} O-O {[%emt 0:01:45]} 9. Qe1 {[%emt 0:00:35]} Nd4 {[%emt 0:07:12]} 10. f5 {[%emt 0:04:02]} Nxb3 {[%emt 0:08:50]} 11. axb3 {[%emt 0:00:16]} exf5 {[%emt 0:00:33]} 12. Qh4 {[%emt 0:01:41]} dxe4 {[%emt 0:25:36]} 13. dxe4 {[%emt 0:01:17]} Nc6 {[%emt 0:11:37]} 14. Bg5 {[%emt 0:05:43]} f6 {[%emt 0:02:31]} 15. Be3 {[%emt 0:03:37]} Qe7 {[%emt 0:08:08]} 16. Rfe1 {[%emt 0:01:10]} b6 {[%emt 0:03:48]} 17. Qg3 {[%emt 0:25:48]} fxe4 {[%emt 0:04:02]} 18. Nxe4 {[%emt 0:00:37]} Qxe4 {[%emt 0:00:59]} 19. Bxc5 {[%emt 0:00:16]} Qg4 {[%emt 0:00:12]} 20. Qc7 {[%emt 0:05:33]} Qd7 {[%emt 0:02:48]} 21. Qxd7 {[%emt 0:00:43]} Bxd7 {[%emt 0:00:01]} 22. Bxf8 {[%emt 0:00:11]} Bxf8 {[%emt 0:00:30]} 23. Nd2 {[%emt 0:00:50]} Nd4 {[%emt 0:01:49]} 24. Ne4 {[%emt 0:05:03]} Bf5 {[%emt 0:01:40]} 25. Nxf6+ {[%emt 0:00:39]} Kf7 {[%emt 0:00:24]} 26. Rf1 {[%emt 0:01:43]} Kxf6 {[%emt 0:00:52]} 27. g4 {[%emt 0:00:38]} Bc5 {[%emt 0:01:11]} 28. Kh1 {[%emt 0:01:39]} Nxc2 {[%emt 0:00:09]} 29. Rac1 {[%emt 0:00:22]} Ne3 {[%emt 0:00:08]} 0-1

[Event "14th Poti Open-A 2019"]
[Site "Poti"]
[Date "2019.07.16"]
[Round "5.22"]
[White "Khukhunaishvili, Tariel"]
[Black "Kukhilava, Gubaz"]
[Result "1-0"]
[ECO "D03"]
[WhiteElo "1722"]
[BlackElo "1558"]
[Annotator "NA RC"]
[PlyCount "165"]
[EventDate "2019.07.13"]
[EventType "swiss"]
[EventCountry "GEO"]
[SourceTitle "playchess.com"]
[Source "ChessBase"]
[SourceQuality "1"]
[TimeControl "40/5400+30:1800+30"]

1. Nf3 {[%emt 0:00:49]} d5 {[%emt 0:00:13]} 2. d4 {[%emt 0:00:21]} Nf6 {[%emt 0:00:05]} 3. Bg5 {[%emt 0:00:16]} e6 {[%emt 0:00:01]} 4. e3 {[%emt 0:00:07]} Be7 {[%emt 0:00:07]} 5. Bd3 {[%emt 0:00:17]} Nbd7 {[%emt 0:00:41]} 6. O-O {[%emt 0:00:09]} O-O {[%emt 0:00:04]} 7. Nbd2 {[%emt 0:00:43]} b6 {[%emt 0:02:49]} 8. Ne5 {[%emt 0:00:42]} Nxe5 9. dxe5 {[%emt 0:00:01]} Nd7 {[%emt 0:01:21]} 10. Bxe7 Qxe7 {[%emt 0:00:01]} 11. f4 {[%emt 0:00:27]} Nc5 {[%emt 0:05:55]} 12. Nf3 {[%emt 0:04:48]} Nxd3 {[%emt 0:14:06]} 13. Qxd3 {[%emt 0:03:18]} a5 {[%emt 0:00:22]} 14. Ng5 {[%emt 0:00:39]} f5 {[%emt 0:00:22]} 15. Rf3 {[%emt 0:06:49]} h6 {[%emt 0:09:36]} 16. Nh3 {[%emt 0:00:05]} Bb7 {[%emt 0:00:02]} 17. Nf2 {[%emt 0:03:37]} Qb4 {[%emt 0:10:05]} 18. Rb1 {[%emt 0:09:15]} c5 {[%emt 0:17:51]} 19. a3 {[%emt 0:06:34]} Qa4 {[%emt 0:09:58]} 20. Rg3 {[%emt 0:21:58]} Kh7 {[%emt 0:05:22]} 21. Qd1 {[%emt 0:05:57]} g6 {[%emt 0:00:01]} 22. h4 {[%emt 0:01:36]} h5 {[%emt 0:00:52]} 23. Nh3 {[%emt 0:00:36]} Qc6 {[%emt 0:06:49]} 24. Qf3 {[%emt 0:01:43]} Kh6 {[%emt 0:01:10]} 25. Ng5 {[%emt 0:06:17]} Qd7 {[%emt 0:02:26]} 26. Qf2 {[%emt 0:02:31]} Rfd8 {[%emt 0:04:43]} 27. Rd1 {[%emt 0:00:53]} Qe7 {[%emt 0:00:48]} 28. Rd2 {[%emt 0:02:42]} Rd7 {[%emt 0:01:53]} 29. Rh3 {[%emt 0:02:05]} Rad8 {[%emt 0:01:21]} 30. c3 {[%emt 0:03:46]} Bc6 {[%emt 0:01:35]} 31. Kh2 {[%emt 0:03:23]} a4 {[%emt 0:00:32]} 32. Kg3 {[%emt 0:00:18]} b5 {[%emt 0:00:26]} 33. Rh1 {[%emt 0:00:27]} Kg7 {[%emt 0:01:07]} 34. Rc1 {[%emt 0:00:37]} Rb8 {[%emt 0:01:15]} 35. Rdc2 {[%emt 0:00:35]} c4 {[%emt 0:01:05]} 36. Rd2 {[%emt 0:01:32]} Rbd8 {[%emt 0:00:13]} 37. Kh3 {[%emt 0:00:15]} Rb7 {[%emt 0:00:35]} 38. Rcd1 {[%emt 0:00:22]} Re8 {[%emt 0:00:38]} 39. Qg3 {[%emt 0:01:06]} Kh6 {[%emt 0:00:48]} 40. Nf3 {[%emt 0:02:15]} Rf8 {[%emt 0:00:51]} 41. Nd4 {[%emt 0:30:32]} Bd7 {[%emt 0:30:00]} 42. Rf2 {[%emt 0:00:46]} Rbb8 {[%emt 0:00:15]} 43. Qh2 {[%emt 0:00:32]} Kg7 {[%emt 0:00:41]} 44. Rf3 {[%emt 0:00:23]} Rg8 {[%emt 0:00:21]} 45. Rg3 {[%emt 0:00:14]} Kh6 {[%emt 0:00:18]} 46. Rg5 {[%emt 0:00:21]} Rbf8 {[%emt 0:00:50]} 47. Qg3 {[%emt 0:00:14]} Rd8 {[%emt 0:00:45]} 48. Ne2 {[%emt 0:00:34]} Be8 {[%emt 0:00:22]} 49. Qf3 {[%emt 0:00:56]} Bf7 {[%emt 0:00:37]} 50. Kg3 {[%emt 0:02:00]} Kg7 {[%emt 0:00:34]} 51. Qxh5 {[%emt 0:02:20]} Rh8 {[%emt 0:00:01]} 52. Qf3 {[%emt 0:00:12]} Rdg8 {[%emt 0:00:37]} 53. Rh1 {[%emt 0:00:23]} Kf8 {[%emt 0:00:01]} 54. Kf2 {[%emt 0:00:31]} Qe8 {[%emt 0:02:01]} 55. g4 {[%emt 0:01:51]} Ke7 {[%emt 0:00:07]} 56. gxf5 {[%emt 0:01:01]} gxf5 {[%emt 0:00:43]} 57. Qg2 {[%emt 0:01:19]} Bh5 {[%emt 0:00:56]} 58. Rg7+ {[%emt 0:00:47]} Bf7 {[%emt 0:00:36]} 59. Qg5+ {[%emt 0:00:15]} Kf8 {[%emt 0:00:13]} 60. Rg1 {[%emt 0:00:19]} Rxg7 {[%emt 0:00:03]} 61. Qxg7+ {[%emt 0:00:25]} Ke7 {[%emt 0:00:00]} 62. Qf6+ {[%emt 0:00:19]} Kd7 {[%emt 0:00:13]} 63. Rg7 {[%emt 0:00:18]} Rf8 {[%emt 0:00:09]} 64. Nd4 {[%emt 0:00:20]} Qe7 {[%emt 0:00:13]} 65. Qxe7+ {[%emt 0:00:41]} Kxe7 {[%emt 0:00:02]} 66. Nxb5 {[%emt 0:00:50]} Rg8 {[%emt 0:00:17]} 67. Rxg8 {[%emt 0:00:21]} Bxg8 {[%emt 0:00:01]} 68. Nd6 {[%emt 0:00:32]} Bf7 {[%emt 0:00:33]} 69. Nb5 {[%emt 0:01:21]} Kd7 {[%emt 0:00:40]} 70. Kg3 {[%emt 0:00:27]} Bh5 {[%emt 0:00:23]} 71. Nd4 {[%emt 0:00:13]} Ke7 {[%emt 0:00:05]} 72. Nc2 {[%emt 0:00:11]} Be8 {[%emt 0:01:08]} 73. h5 {[%emt 0:01:23]} Bxh5 {[%emt 0:00:02]} 74. Kh4 {[%emt 0:00:06]} Be8 {[%emt 0:00:39]} 75. Kg5 {[%emt 0:00:06]} Kf7 {[%emt 0:00:40]} 76. Kh6 {[%emt 0:00:10]} Bc6 {[%emt 0:00:31]} 77. Nd4 {[%emt 0:00:07]} Bd7 {[%emt 0:00:04]} 78. Nf3 {[%emt 0:00:07]} Ke7 {[%emt 0:00:32]} 79. Kg7 {[%emt 0:00:09]} Be8 {[%emt 0:00:04]} 80. Nh4 {[%emt 0:00:25]} Bd7 {[%emt 0:01:27]} 81. Ng6+ {[%emt 0:00:14]} Ke8 {[%emt 0:00:42]} 82. Kf6 {[%emt 0:00:09]} Bc8 {[%emt 0:00:04]} 83. Nh8 {[%emt 0:00:17]} 1-0